[Event "Live Chess"]
[Site "Chess.com"]
[Date "2024.06.02"]
[Round "-"]
[White "NAZRIZ1977"]
[Black "booktrunk"]
[Result "1-0"]
[WhiteElo "2099"]
[BlackElo "1521"]
[TimeControl "300"]
[EndTime "23:40:45 PDT"]
[Termination "NAZRIZ1977 won by resignation"]

1. d4 {[%clk 0:04:52.2]} 1... b6 {[%clk 0:04:59.9]} 2. Nf3 {[%clk 0:04:50.2]}
2... Bb7 {[%clk 0:04:59.8]} 3. e3 {[%clk 0:04:49.4]} 3... e6 {[%clk 0:04:53.3]}
4. Nbd2 {[%clk 0:04:48.2]} 4... h6 {[%clk 0:04:44.8]} 5. Bd3 {[%clk 0:04:47]}
5... Nf6 {[%clk 0:04:42.7]} 6. O-O {[%clk 0:04:45.4]} 6... c5 {[%clk 0:04:39]}
7. Qe2 {[%clk 0:04:43.6]} 7... cxd4 {[%clk 0:04:37.1]} 8. exd4 {[%clk
0:04:42.6]} 8... Be7 {[%clk 0:04:30]} 9. Re1 {[%clk 0:04:40.8]} 9... O-O {[%clk
0:04:28.9]} 10. c3 {[%clk 0:04:39.8]} 10... a5 {[%clk 0:04:23.1]} 11. Ne4 {[%clk
0:04:34.8]} 11... Ba6 {[%clk 0:04:21.5]} 12. Bxa6 {[%clk 0:04:26]} 12... Nxa6
{[%clk 0:04:19.8]} 13. Bf4 {[%clk 0:04:25]} 13... Nxe4 {[%clk 0:04:17.8]} 14.
Qxe4 {[%clk 0:04:23.7]} 14... Rc8 {[%clk 0:04:06.1]} 15. Rad1 {[%clk 0:04:18.9]}
15... d5 {[%clk 0:04:03.3]} 16. Qe3 {[%clk 0:04:15.2]} 16... g5 {[%clk
0:03:59.9]} 17. Bg3 {[%clk 0:04:07.1]} 17... Bd6 {[%clk 0:03:56.5]} 18. Bxd6
{[%clk 0:04:02.6]} 18... Qxd6 {[%clk 0:03:55.7]} 19. h4 {[%clk 0:04:00]} 19...
Qf4 {[%clk 0:03:51.5]} 20. hxg5 {[%clk 0:03:56.7]} 20... Qxe3 {[%clk 0:03:45.5]}
21. Rxe3 {[%clk 0:03:53.9]} 21... hxg5 {[%clk 0:03:44.6]} 22. Nxg5 {[%clk
0:03:52.4]} 22... Rce8 {[%clk 0:03:42.9]} 23. Rg3 {[%clk 0:03:35.5]} 23... Kh8
{[%clk 0:03:41.4]} 24. f4 {[%clk 0:03:34.1]} 24... f6 {[%clk 0:03:38.5]} 25. Nf3
{[%clk 0:03:24.4]} 25... Rg8 {[%clk 0:03:35.7]} 26. Rh3+ {[%clk 0:03:15.5]}
26... Kg7 {[%clk 0:03:33.9]} 27. Kf2 {[%clk 0:03:15.4]} 27... Kf8 {[%clk
0:03:32.5]} 28. Rdh1 {[%clk 0:03:13.2]} 28... Re7 {[%clk 0:03:28.1]} 29. Rh6
{[%clk 0:03:04.4]} 29... Rf7 {[%clk 0:03:25.2]} 30. Re1 {[%clk 0:02:58]} 30...
Ke7 {[%clk 0:03:23.5]} 31. f5 {[%clk 0:02:52.3]} 31... Nc7 {[%clk 0:03:19.2]}
32. Nh4 {[%clk 0:02:50.9]} 32... Rfg7 {[%clk 0:03:08.3]} 33. fxe6 {[%clk
0:02:45.9]} 33... Nxe6 {[%clk 0:03:06.4]} 34. Nf5+ {[%clk 0:02:44.9]} 34... Kf7
{[%clk 0:03:00.8]} 35. Nxg7 {[%clk 0:02:43.4]} 35... Rxg7 {[%clk 0:02:59.6]} 36.
Reh1 {[%clk 0:02:37.2]} 36... Ng5 {[%clk 0:02:55.3]} 37. R1h2 {[%clk 0:02:21.7]}
37... Ne4+ {[%clk 0:02:52.7]} 38. Ke3 {[%clk 0:02:13.5]} 38... Rg3+ {[%clk
0:02:49.3]} 39. Kf4 {[%clk 0:02:04.5]} 39... Rg7 {[%clk 0:02:46.6]} 40. Rh7
{[%clk 0:02:01.8]} 40... Ng5 {[%clk 0:02:42.8]} 41. Rxg7+ {[%clk 0:01:59.9]}
41... Kxg7 {[%clk 0:02:41.8]} 42. g4 {[%clk 0:01:58.2]} 42... Nf7 {[%clk
0:02:35.4]} 43. Re2 {[%clk 0:01:54.8]} 43... Nd6 {[%clk 0:02:33.5]} 44. Re6
{[%clk 0:01:51.9]} 44... Nf7 {[%clk 0:02:30.6]} 45. Rxb6 {[%clk 0:01:50.6]}
45... Kg6 {[%clk 0:02:29.5]} 46. Rb5 {[%clk 0:01:45.6]} 1-0

[Event "Live Chess"]
[Site "Chess.com"]
[Date "2024.06.02"]
[Round "-"]
[White "elephantgerrald"]
[Black "Crowded_House"]
[Result "0-1"]
[WhiteElo "839"]
[BlackElo "1694"]
[TimeControl "300"]
[EndTime "23:41:35 PDT"]
[Termination "Crowded_House won by checkmate"]

1. e4 {[%clk 0:04:58.5]} 1... e6 {[%clk 0:04:58.4]} 2. Nf3 {[%clk 0:04:58]} 2...
d5 {[%clk 0:04:57.1]} 3. exd5 {[%clk 0:04:57]} 3... exd5 {[%clk 0:04:56.8]} 4.
Qe2+ {[%clk 0:04:56.3]} 4... Qe7 {[%clk 0:04:54.7]} 5. Qxe7+ {[%clk 0:04:55]}
5... Bxe7 {[%clk 0:04:54.2]} 6. g3 {[%clk 0:04:54.3]} 6... Bd6 {[%clk
0:04:53.3]} 7. Bg2 {[%clk 0:04:53]} 7... Ne7 {[%clk 0:04:52.8]} 8. O-O {[%clk
0:04:52]} 8... O-O {[%clk 0:04:50.5]} 9. Ng5 {[%clk 0:04:50.8]} 9... h6 {[%clk
0:04:46.1]} 10. Nf3 {[%clk 0:04:49.4]} 10... c6 {[%clk 0:04:44.1]} 11. d4 {[%clk
0:04:46.7]} 11... Bf5 {[%clk 0:04:42.7]} 12. c3 {[%clk 0:04:42.9]} 12... Nd7
{[%clk 0:04:40.5]} 13. Be3 {[%clk 0:04:41.7]} 13... Rfe8 {[%clk 0:04:35.9]} 14.
Nbd2 {[%clk 0:04:40.3]} 14... Bh7 {[%clk 0:04:30.3]} 15. Rfe1 {[%clk 0:04:38.2]}
15... Nf5 {[%clk 0:04:24.1]} 16. Bh3 {[%clk 0:04:33.5]} 16... Nxe3 {[%clk
0:04:13.4]} 17. Bxd7 {[%clk 0:04:26.9]} 17... Re7 {[%clk 0:04:08.9]} 18. Rxe3
{[%clk 0:04:19.6]} 18... Rxd7 {[%clk 0:04:01.6]} 19. Rae1 {[%clk 0:04:14.8]}
19... Kf8 {[%clk 0:03:54.5]} 20. c4 {[%clk 0:04:10.1]} 20... dxc4 {[%clk
0:03:43.7]} 21. Nxc4 {[%clk 0:04:07.5]} 21... Bb4 {[%clk 0:03:36]} 22. R1e2
{[%clk 0:03:59.8]} 22... Re7 {[%clk 0:03:14.7]} 23. Nfe5 {[%clk 0:03:52.8]}
23... f6 {[%clk 0:03:02.9]} 24. Nd3 {[%clk 0:03:38.1]} 24... Rxe3 {[%clk
0:02:59.7]} 25. Rxe3 {[%clk 0:03:34.2]} 25... Bxd3 {[%clk 0:02:48.3]} 26. Rxd3
{[%clk 0:03:32.9]} 26... Rd8 {[%clk 0:02:41.9]} 27. a3 {[%clk 0:03:26.5]} 27...
Bc5 {[%clk 0:02:34.6]} 28. b4 {[%clk 0:02:51.5]} 28... Rxd4 {[%clk 0:02:26.3]}
29. Nb2 {[%clk 0:02:46]} 29... Rxd3 {[%clk 0:02:24.7]} 30. Nxd3 {[%clk
0:02:44.3]} 30... Bd4 {[%clk 0:02:19.7]} 31. Kg2 {[%clk 0:02:41.6]} 31... b6
{[%clk 0:02:14]} 32. f4 {[%clk 0:02:38.1]} 32... c5 {[%clk 0:02:10.7]} 33. Kf3
{[%clk 0:02:33.7]} 33... c4 {[%clk 0:02:09.5]} 34. Nc1 {[%clk 0:02:25.7]} 34...
f5 {[%clk 0:02:01.2]} 35. g4 {[%clk 0:02:22.5]} 35... fxg4+ {[%clk 0:01:51]} 36.
Ke4 {[%clk 0:02:19.9]} 36... Bb2 {[%clk 0:01:42.2]} 37. Ne2 {[%clk 0:02:16.4]}
37... Bxa3 {[%clk 0:01:39]} 38. Kd4 {[%clk 0:02:13.1]} 38... Bxb4 {[%clk
0:01:35.7]} 39. Kxc4 {[%clk 0:02:11.8]} 39... Bc5 {[%clk 0:01:34.1]} 40. Kb5
{[%clk 0:02:07.5]} 40... a5 {[%clk 0:01:30.3]} 41. Ka4 {[%clk 0:02:05.4]} 41...
Kf7 {[%clk 0:01:27.4]} 42. Nc3 {[%clk 0:02:00.1]} 42... h5 {[%clk 0:01:17.9]}
43. Nd5 {[%clk 0:01:57.5]} 43... h4 {[%clk 0:01:15.6]} 44. Nc3 {[%clk 0:01:52]}
44... g3 {[%clk 0:01:14.5]} 45. hxg3 {[%clk 0:01:50.9]} 45... hxg3 {[%clk
0:01:13.5]} 46. Ne2 {[%clk 0:01:49.8]} 46... g2 {[%clk 0:01:12.4]} 47. Kb3
{[%clk 0:01:45.8]} 47... g1=Q {[%clk 0:01:11.2]} 48. Nxg1 {[%clk 0:01:44.9]}
48... Bxg1 {[%clk 0:01:10.8]} 49. Ka4 {[%clk 0:01:43.3]} 49... Kf6 {[%clk
0:01:10.4]} 50. Kb5 {[%clk 0:01:42.2]} 50... Kf5 {[%clk 0:01:09.8]} 51. Kc4
{[%clk 0:01:39.2]} 51... Kxf4 {[%clk 0:01:09.3]} 52. Kd3 {[%clk 0:01:37.2]}
52... a4 {[%clk 0:01:08.1]} 53. Kc2 {[%clk 0:01:36.1]} 53... g5 {[%clk
0:01:06.2]} 54. Kb1 {[%clk 0:01:36]} 54... g4 {[%clk 0:01:05.1]} 55. Ka2 {[%clk
0:01:35]} 55... g3 {[%clk 0:01:04]} 56. Kb1 {[%clk 0:01:33.8]} 56... g2 {[%clk
0:01:02.7]} 57. Kc2 {[%clk 0:01:33.7]} 57... Bc5 {[%clk 0:01:01.3]} 58. Kd1
{[%clk 0:01:33.6]} 58... g1=Q+ {[%clk 0:01:00.1]} 59. Ke2 {[%clk 0:01:33.5]}
59... Qg2+ {[%clk 0:00:58]} 60. Kd3 {[%clk 0:01:32.5]} 60... Qf3+ {[%clk
0:00:56.3]} 61. Kc4 {[%clk 0:01:32.4]} 61... a3 {[%clk 0:00:54.1]} 62. Kb5
{[%clk 0:01:30.6]} 62... a2 {[%clk 0:00:53.4]} 63. Ka6 {[%clk 0:01:29.6]} 63...
a1=Q+ {[%clk 0:00:52]} 64. Kb5 {[%clk 0:01:28.4]} 64... Qb2+ {[%clk 0:00:49.3]}
65. Ka6 {[%clk 0:01:27]} 65... Qba3+ {[%clk 0:00:48.4]} 66. Kb5 {[%clk
0:01:24.8]} 66... Qfb3+ {[%clk 0:00:44]} 67. Kc6 {[%clk 0:01:23]} 67... Qe6+
{[%clk 0:00:43.1]} 68. Kb7 {[%clk 0:01:21.8]} 68... Qd7+ {[%clk 0:00:38.9]} 69.
Kb8 {[%clk 0:01:20.4]} 69... Qaa7# {[%clk 0:00:37.5]} 0-1

[Event "Live Chess"]
[Site "Chess.com"]
[Date "2024.06.02"]
[Round "-"]
[White "Ferrarifan27"]
[Black "Isambard_Thomas"]
[Result "0-1"]
[WhiteElo "2115"]
[BlackElo "2159"]
[TimeControl "300"]
[EndTime "23:41:53 PDT"]
[Termination "Isambard_Thomas won by checkmate"]

1. e4 {[%clk 0:04:58.2]} 1... Nc6 {[%clk 0:04:57.7]} 2. d4 {[%clk 0:04:56]} 2...
d5 {[%clk 0:04:55.9]} 3. e5 {[%clk 0:04:53.1]} 3... Bf5 {[%clk 0:04:54.5]} 4. h4
{[%clk 0:04:49.3]} 4... f6 {[%clk 0:04:49.3]} 5. exf6 {[%clk 0:04:43.4]} 5...
Nxf6 {[%clk 0:04:47.3]} 6. Nf3 {[%clk 0:04:42.6]} 6... e6 {[%clk 0:04:46.2]} 7.
Bb5 {[%clk 0:04:37.7]} 7... Bd6 {[%clk 0:04:44.2]} 8. Bg5 {[%clk 0:04:32.4]}
8... O-O {[%clk 0:04:39.4]} 9. Bxc6 {[%clk 0:04:28.4]} 9... bxc6 {[%clk
0:04:36.7]} 10. Ne5 {[%clk 0:04:27.7]} 10... Qe8 {[%clk 0:04:28.6]} 11. O-O
{[%clk 0:04:21.8]} 11... Bxe5 {[%clk 0:04:09]} 12. dxe5 {[%clk 0:04:20.2]} 12...
Ne4 {[%clk 0:04:08.5]} 13. Be3 {[%clk 0:04:16.1]} 13... Rb8 {[%clk 0:03:24.1]}
14. b3 {[%clk 0:04:08.5]} 14... Qg6 {[%clk 0:03:17.5]} 15. h5 {[%clk 0:03:59.1]}
15... Qf7 {[%clk 0:02:49.3]} 16. Bxa7 {[%clk 0:03:54.6]} 16... Ra8 {[%clk
0:02:37]} 17. Be3 {[%clk 0:03:53.2]} 17... Qe7 {[%clk 0:02:24.4]} 18. Nd2 {[%clk
0:03:40.2]} 18... Nc3 {[%clk 0:02:19.7]} 19. Qe1 {[%clk 0:03:38.8]} 19... Nxa2
{[%clk 0:02:15]} 20. Qb1 {[%clk 0:03:23.1]} 20... Nc3 {[%clk 0:02:05.7]} 21. Qb2
{[%clk 0:03:21.4]} 21... Ne2+ {[%clk 0:02:00.6]} 22. Kh1 {[%clk 0:03:18.2]}
22... Qh4# {[%clk 0:01:58.7]} 0-1

[Event "Live Chess"]
[Site "Chess.com"]
[Date "2024.06.02"]
[Round "-"]
[White "Duke_of_Bebington"]
[Black "KyryloPoluliakh"]
[Result "1-0"]
[WhiteElo "1666"]
[BlackElo "1528"]
[TimeControl "300"]
[EndTime "23:41:57 PDT"]
[Termination "Duke_of_Bebington won on time"]

1. e4 {[%clk 0:04:58.1]} 1... c5 {[%clk 0:04:57.8]} 2. c3 {[%clk 0:04:57]} 2...
Nc6 {[%clk 0:04:56.9]} 3. d4 {[%clk 0:04:56.5]} 3... cxd4 {[%clk 0:04:54.7]} 4.
cxd4 {[%clk 0:04:56.4]} 4... d5 {[%clk 0:04:49.8]} 5. exd5 {[%clk 0:04:50.2]}
5... Qxd5 {[%clk 0:04:46.6]} 6. Nf3 {[%clk 0:04:49.4]} 6... Bg4 {[%clk
0:04:42.2]} 7. Be2 {[%clk 0:04:48.3]} 7... Bxf3 {[%clk 0:04:36]} 8. Bxf3 {[%clk
0:04:46.6]} 8... Qe6+ {[%clk 0:04:33.3]} 9. Be3 {[%clk 0:04:44.3]} 9... Qd7
{[%clk 0:04:27.7]} 10. Nc3 {[%clk 0:04:38.8]} 10... g6 {[%clk 0:04:23.9]} 11.
O-O {[%clk 0:04:29.8]} 11... Bg7 {[%clk 0:04:21.2]} 12. Qa4 {[%clk 0:04:24.9]}
12... Nxd4 {[%clk 0:03:55.5]} 13. Qxd7+ {[%clk 0:04:17.1]} 13... Kxd7 {[%clk
0:03:53.7]} 14. Rfd1 {[%clk 0:04:15.6]} 14... e5 {[%clk 0:03:51.8]} 15. Nb5
{[%clk 0:04:07.9]} 15... Ke7 {[%clk 0:03:37.3]} 16. Nxd4 {[%clk 0:04:06.5]}
16... exd4 {[%clk 0:03:35.1]} 17. Bxd4 {[%clk 0:04:06.4]} 17... Bxd4 {[%clk
0:03:32.7]} 18. Rxd4 {[%clk 0:04:05]} 18... Nf6 {[%clk 0:03:23.5]} 19. Re1+
{[%clk 0:03:59]} 19... Kf8 {[%clk 0:03:20.5]} 20. b3 {[%clk 0:03:54.6]} 20...
Kg7 {[%clk 0:03:19.3]} 21. Bxb7 {[%clk 0:03:52.4]} 21... Rab8 {[%clk 0:03:15.6]}
22. Ba6 {[%clk 0:03:48.6]} 22... Rb6 {[%clk 0:03:13.7]} 23. Bc4 {[%clk 0:03:47]}
23... a5 {[%clk 0:03:03.6]} 24. Re7 {[%clk 0:03:39.2]} 24... Rf8 {[%clk
0:03:00.6]} 25. h3 {[%clk 0:03:34.3]} 25... Ng8 {[%clk 0:02:52.8]} 26. Ra7
{[%clk 0:03:31]} 26... Nf6 {[%clk 0:02:47.4]} 27. Rxa5 {[%clk 0:03:24.4]} 27...
Rb7 {[%clk 0:02:40.7]} 28. Ra6 {[%clk 0:03:13.6]} 28... Re8 {[%clk 0:02:35.1]}
29. Kf1 {[%clk 0:03:11.8]} 29... Rbe7 {[%clk 0:02:29.8]} 30. g3 {[%clk
0:03:10.3]} 30... Re1+ {[%clk 0:02:26.1]} 31. Kg2 {[%clk 0:03:09.4]} 31... R1e7
{[%clk 0:02:15.9]} 32. a4 {[%clk 0:02:57.3]} 32... Rb7 {[%clk 0:02:11.9]} 33.
Rad6 {[%clk 0:02:42.8]} 33... Ree7 {[%clk 0:01:57.9]} 34. a5 {[%clk 0:02:39.2]}
34... Ra7 {[%clk 0:01:54.8]} 35. a6 {[%clk 0:02:38.5]} 35... Ne4 {[%clk
0:01:45.2]} 36. b4 {[%clk 0:02:24.7]} 36... Nxd6 {[%clk 0:01:39]} 37. Rxd6
{[%clk 0:02:23.3]} 37... Re4 {[%clk 0:01:34.1]} 38. Rc6 {[%clk 0:02:17.4]} 38...
Rxc4 {[%clk 0:01:25.8]} 39. Rxc4 {[%clk 0:02:15.9]} 39... Rxa6 {[%clk
0:01:25.2]} 40. Kf3 {[%clk 0:02:12.5]} 40... Kf6 {[%clk 0:01:22.1]} 41. Rc7
{[%clk 0:02:04.9]} 41... Rb6 {[%clk 0:01:18.6]} 42. Rc4 {[%clk 0:02:01.8]} 42...
Ke6 {[%clk 0:01:15.7]} 43. Rf4 {[%clk 0:01:59.1]} 43... f5 {[%clk 0:01:11.2]}
44. g4 {[%clk 0:01:57.4]} 44... fxg4+ {[%clk 0:01:08.3]} 45. hxg4 {[%clk
0:01:57]} 45... g5 {[%clk 0:01:03.3]} 46. Re4+ {[%clk 0:01:54.5]} 46... Kd5
{[%clk 0:00:56.9]} 47. Ke3 {[%clk 0:01:49.1]} 47... Rb8 {[%clk 0:00:45.4]} 48.
f3 {[%clk 0:01:42.1]} 48... Rb6 {[%clk 0:00:40.8]} 49. Kd3 {[%clk 0:01:38.7]}
49... h6 {[%clk 0:00:39.8]} 50. Rd4+ {[%clk 0:01:36]} 50... Ke5 {[%clk
0:00:38.1]} 51. Kc3 {[%clk 0:01:30.5]} 51... Rc6+ {[%clk 0:00:35.8]} 52. Rc4
{[%clk 0:01:29.5]} 52... Rb6 {[%clk 0:00:29.4]} 53. Rc5+ {[%clk 0:01:26.6]}
53... Kd6 {[%clk 0:00:27.7]} 54. Kc4 {[%clk 0:01:25.6]} 54... Rb7 {[%clk
0:00:19]} 55. b5 {[%clk 0:01:22.6]} 55... Rb6 {[%clk 0:00:18.5]} 56. Rc8 {[%clk
0:01:13.1]} 56... Rb7 {[%clk 0:00:17]} 57. Rh8 {[%clk 0:01:09.5]} 57... Rb6
{[%clk 0:00:14.5]} 58. Rxh6+ {[%clk 0:01:08.1]} 58... Kc7 {[%clk 0:00:14.1]} 59.
Rxb6 {[%clk 0:01:07.3]} 59... Kxb6 {[%clk 0:00:13.7]} 60. Kd5 {[%clk 0:01:07.1]}
60... Kxb5 {[%clk 0:00:12.9]} 61. Ke5 {[%clk 0:01:06.7]} 61... Kc5 {[%clk
0:00:12.5]} 62. Kf5 {[%clk 0:01:06.6]} 62... Kd6 {[%clk 0:00:12]} 63. Kxg5
{[%clk 0:01:06.5]} 63... Ke6 {[%clk 0:00:11.3]} 64. f4 {[%clk 0:01:05.9]} 64...
Kf7 {[%clk 0:00:09.2]} 65. f5 {[%clk 0:01:05.3]} 65... Kg7 {[%clk 0:00:08.8]}
66. Kf4 {[%clk 0:01:04.7]} 66... Kf7 {[%clk 0:00:08.7]} 67. g5 {[%clk
0:01:04.1]} 67... Kg7 {[%clk 0:00:07.8]} 68. Ke5 {[%clk 0:01:03.6]} 68... Kf7
{[%clk 0:00:07]} 69. g6+ {[%clk 0:01:03]} 69... Kg7 {[%clk 0:00:06.4]} 70. Ke6
{[%clk 0:01:02.1]} 70... Kf8 {[%clk 0:00:05.3]} 71. f6 {[%clk 0:01:01.3]} 71...
Kg8 {[%clk 0:00:05]} 72. g7 {[%clk 0:00:57.7]} 72... Kh7 {[%clk 0:00:03.6]} 73.
Ke7 {[%clk 0:00:56.8]} 73... Kg8 {[%clk 0:00:01.6]} 74. f7+ {[%clk 0:00:56.2]}
74... Kxg7 {[%clk 0:00:01.3]} 75. f8=Q+ {[%clk 0:00:53.6]} 75... Kg6 {[%clk
0:00:00.6]} 76. Qf4 {[%clk 0:00:51.4]} 76... Kh5 {[%clk 0:00:00.3]} 77. Qg3
{[%clk 0:00:49.6]} 1-0

[Event "Live Chess"]
[Site "Chess.com"]
[Date "2024.06.02"]
[Round "-"]
[White "KeithArkell"]
[Black "Bradfield133"]
[Result "1-0"]
[WhiteElo "2429"]
[BlackElo "1868"]
[TimeControl "300"]
[EndTime "23:42:06 PDT"]
[Termination "KeithArkell won on time"]

1. d4 {[%clk 0:04:57.5]} 1... d6 {[%clk 0:04:55.1]} 2. Nf3 {[%clk 0:04:56.7]}
2... Bg4 {[%clk 0:04:53.8]} 3. g3 {[%clk 0:04:55.8]} 3... Nd7 {[%clk 0:04:50.6]}
4. Bg2 {[%clk 0:04:54.6]} 4... e5 {[%clk 0:04:36.6]} 5. c4 {[%clk 0:04:52.3]}
5... Ngf6 {[%clk 0:04:30.4]} 6. Nc3 {[%clk 0:04:51.4]} 6... Be7 {[%clk
0:04:28.4]} 7. O-O {[%clk 0:04:50.2]} 7... O-O {[%clk 0:04:27]} 8. h3 {[%clk
0:04:47.9]} 8... Bh5 {[%clk 0:04:22.6]} 9. Be3 {[%clk 0:04:46.1]} 9... c6 {[%clk
0:04:01.5]} 10. c5 {[%clk 0:04:37.6]} 10... exd4 {[%clk 0:03:44]} 11. cxd6
{[%clk 0:04:33.7]} 11... dxe3 {[%clk 0:03:37.8]} 12. dxe7 {[%clk 0:04:32.9]}
12... Qxe7 {[%clk 0:03:36.3]} 13. fxe3 {[%clk 0:04:30.2]} 13... Qxe3+ {[%clk
0:03:33.9]} 14. Kh2 {[%clk 0:04:29.4]} 14... Rad8 {[%clk 0:03:23.8]} 15. Qd4
{[%clk 0:04:28.3]} 15... Qxd4 {[%clk 0:03:08.6]} 16. Nxd4 {[%clk 0:04:28.2]}
16... Bg6 {[%clk 0:03:07.2]} 17. e4 {[%clk 0:04:25.6]} 17... Nc5 {[%clk
0:02:59.8]} 18. Nf5 {[%clk 0:04:24.6]} 18... Rd2 {[%clk 0:02:41.5]} 19. Ne7+
{[%clk 0:04:20.2]} 19... Kh8 {[%clk 0:02:39.1]} 20. Nxg6+ {[%clk 0:04:19.4]}
20... hxg6 {[%clk 0:02:36.5]} 21. b4 {[%clk 0:04:18.6]} 21... Ncxe4 {[%clk
0:02:29.7]} 22. Nxe4 {[%clk 0:04:14.4]} 22... Nxe4 {[%clk 0:02:27.7]} 23. Rf4
{[%clk 0:04:12.2]} 23... Nf6 {[%clk 0:02:15.4]} 24. a4 {[%clk 0:04:07.7]} 24...
Re8 {[%clk 0:02:10.4]} 25. Kg1 {[%clk 0:03:56.3]} 25... Red8 {[%clk 0:01:50.5]}
26. b5 {[%clk 0:03:52.7]} 26... Rd1+ {[%clk 0:01:47]} 27. Rxd1 {[%clk
0:03:51.8]} 27... Rxd1+ {[%clk 0:01:45.1]} 28. Kh2 {[%clk 0:03:50.9]} 28... cxb5
{[%clk 0:01:39.4]} 29. axb5 {[%clk 0:03:49.7]} 29... Rb1 {[%clk 0:01:23.7]} 30.
Ra4 {[%clk 0:03:43.9]} 30... Rxb5 {[%clk 0:01:19.2]} 31. Rxa7 {[%clk 0:03:42.8]}
31... Rb2 {[%clk 0:01:16.1]} 32. Kg1 {[%clk 0:03:40.4]} 32... Nh5 {[%clk
0:01:02.9]} 33. Bd5 {[%clk 0:03:32.2]} 33... Nxg3 {[%clk 0:00:56.8]} 34. Bxf7
{[%clk 0:03:27.9]} 34... Kh7 {[%clk 0:00:46.8]} 35. h4 {[%clk 0:03:21.7]} 35...
Ne2+ {[%clk 0:00:32.5]} 36. Kf2 {[%clk 0:03:19.2]} 36... Nd4+ {[%clk 0:00:26]}
37. Kg3 {[%clk 0:03:13.9]} 37... Nf5+ {[%clk 0:00:24.7]} 38. Kg4 {[%clk
0:03:12.9]} 38... Rb4+ {[%clk 0:00:22.4]} 39. Kg5 {[%clk 0:03:12]} 39... Nxh4
{[%clk 0:00:12.6]} 40. Bd5 {[%clk 0:03:09.3]} 40... Nf5 {[%clk 0:00:10.1]} 41.
Ra8 {[%clk 0:03:05.5]} 41... Ne7 {[%clk 0:00:05.1]} 42. Be6 {[%clk 0:03:03.9]}
42... Rb5+ {[%clk 0:00:04.1]} 43. Kf4 {[%clk 0:03:02.6]} 43... Rc5 {[%clk
0:00:02.2]} 44. Re8 {[%clk 0:02:59.8]} 44... Rc7 {[%clk 0:00:01.1]} 45. Kg5
{[%clk 0:02:58.4]} 45... b5 {[%clk 0:00:00.2]} 46. Rb8 {[%clk 0:02:56.8]} 46...
Rb7 {[%clk 0:00:00.1]} 47. Rxb7 {[%clk 0:02:55.4]} 1-0

[Event "Live Chess"]
[Site "Chess.com"]
[Date "2024.06.02"]
[Round "-"]
[White "matt1979"]
[Black "RichardABates"]
[Result "0-1"]
[WhiteElo "1385"]
[BlackElo "2358"]
[TimeControl "300"]
[EndTime "23:43:31 PDT"]
[Termination "RichardABates won by checkmate"]

1. f4 {[%clk 0:04:58.3]} 1... e5 {[%clk 0:04:56.3]} 2. fxe5 {[%clk 0:04:56.8]}
2... d6 {[%clk 0:04:55.3]} 3. Nf3 {[%clk 0:04:54.8]} 3... dxe5 {[%clk
0:04:52.7]} 4. e4 {[%clk 0:04:53.3]} 4... Bc5 {[%clk 0:04:47.1]} 5. c3 {[%clk
0:04:51]} 5... Nc6 {[%clk 0:04:45.2]} 6. Bb5 {[%clk 0:04:41.8]} 6... Bd7 {[%clk
0:04:37.2]} 7. Bxc6 {[%clk 0:04:36.3]} 7... Bxc6 {[%clk 0:04:35.6]} 8. d4 {[%clk
0:04:35.5]} 8... Bb6 {[%clk 0:04:19.2]} 9. O-O {[%clk 0:04:30]} 9... exd4 {[%clk
0:04:10.7]} 10. cxd4 {[%clk 0:04:25.1]} 10... Ne7 {[%clk 0:04:03.8]} 11. Nc3
{[%clk 0:04:14.1]} 11... O-O {[%clk 0:04:02]} 12. Kh1 {[%clk 0:04:10.1]} 12...
f5 {[%clk 0:03:59.4]} 13. e5 {[%clk 0:04:06.8]} 13... Bxf3 {[%clk 0:03:53.6]}
14. Qxf3 {[%clk 0:03:59.7]} 14... Qxd4 {[%clk 0:03:50.7]} 15. Bg5 {[%clk
0:03:47.7]} 15... Ng6 {[%clk 0:03:46.8]} 16. Rae1 {[%clk 0:03:36.1]} 16... Nxe5
{[%clk 0:03:28.4]} 17. Qg3 {[%clk 0:03:33.5]} 17... Ng6 {[%clk 0:03:22.5]} 18.
h4 {[%clk 0:03:26.4]} 18... f4 {[%clk 0:03:19.5]} 19. Qh3 {[%clk 0:03:15.7]}
19... Rae8 {[%clk 0:03:08.7]} 20. h5 {[%clk 0:03:09.9]} 20... Rxe1 {[%clk
0:02:58.1]} 21. Rxe1 {[%clk 0:03:08.4]} 21... Qf2 {[%clk 0:02:20.5]} 22. Qe6+
{[%clk 0:03:03.5]} 22... Kh8 {[%clk 0:02:18.9]} 23. hxg6 {[%clk 0:02:58.7]}
23... f3 {[%clk 0:02:17.4]} 24. Rg1 {[%clk 0:02:18.3]} 24... Qxg1# {[%clk
0:02:14.4]} 0-1

[Event "Live Chess"]
[Site "Chess.com"]
[Date "2024.06.02"]
[Round "-"]
[White "booktrunk"]
[Black "JohanKjeldahl"]
[Result "0-1"]
[WhiteElo "1519"]
[BlackElo "1860"]
[TimeControl "300"]
[EndTime "23:43:47 PDT"]
[Termination "JohanKjeldahl won by checkmate"]

1. d4 {[%clk 0:04:51.7]} 1... Nf6 {[%clk 0:04:57.1]} 2. Nc3 {[%clk 0:04:49.3]}
2... d5 {[%clk 0:04:54.1]} 3. Bf4 {[%clk 0:04:48.2]} 3... c6 {[%clk 0:04:52.1]}
4. e3 {[%clk 0:04:43.6]} 4... g6 {[%clk 0:04:51]} 5. h3 {[%clk 0:04:43.1]} 5...
Bg7 {[%clk 0:04:49.9]} 6. Bd3 {[%clk 0:04:40.9]} 6... O-O {[%clk 0:04:48.1]} 7.
Nf3 {[%clk 0:04:30.6]} 7... Nbd7 {[%clk 0:04:45.3]} 8. O-O {[%clk 0:04:27.4]}
8... Re8 {[%clk 0:04:41.6]} 9. Kh1 {[%clk 0:04:26.2]} 9... Nh5 {[%clk
0:04:39.9]} 10. Bh2 {[%clk 0:04:24.5]} 10... e5 {[%clk 0:04:35.9]} 11. dxe5
{[%clk 0:04:22.4]} 11... Nxe5 {[%clk 0:04:33.6]} 12. Nxe5 {[%clk 0:04:20.7]}
12... Bxe5 {[%clk 0:04:32.1]} 13. Bxe5 {[%clk 0:04:18.4]} 13... Rxe5 {[%clk
0:04:30]} 14. Re1 {[%clk 0:04:11.5]} 14... Qh4 {[%clk 0:04:26.9]} 15. Qf3 {[%clk
0:04:08.2]} 15... Bf5 {[%clk 0:04:15]} 16. Bxf5 {[%clk 0:04:06.4]} 16... Rxf5
{[%clk 0:04:13.6]} 17. Qe2 {[%clk 0:03:58.9]} 17... Rxf2 {[%clk 0:04:12.1]} 18.
Qd3 {[%clk 0:03:50.7]} 18... Qg3 {[%clk 0:04:02.2]} 19. Rg1 {[%clk 0:03:45.1]}
19... Qe5 {[%clk 0:03:51.9]} 20. Qd4 {[%clk 0:03:23.9]} 20... Ng3+ {[%clk
0:03:48.2]} 21. Kh2 {[%clk 0:03:22.4]} 21... Nf1+ {[%clk 0:03:46.6]} 22. Kh1
{[%clk 0:03:21.3]} 22... Qh2# {[%clk 0:03:45.5]} 0-1